[Event "Late-Titled-Tuesday-Blitz-March-05-2024"]
[Site "Chess.com"]
[Date "2024.03.05"]
[Round "6"]
[White "GiorgianBarbosa"]
[Black "DraningWaterHi"]
[Result "1-0"]
[WhiteElo "2419"]
[BlackElo "2199"]
[TimeControl "180+1"]
[EndTime "15:04:20 PST"]
[Termination "GiorgianBarbosa won by checkmate"]

1. b3 {[%clk 0:03:00]} 1... b6 {[%clk 0:02:57.8]} 2. Bb2 {[%clk 0:03:00.9]} 2...
Bb7 {[%clk 0:02:57.8]} 3. Nf3 {[%clk 0:03:01]} 3... Nf6 {[%clk 0:02:57]} 4. Bxf6
{[%clk 0:03:00.4]} 4... gxf6 {[%clk 0:02:55.8]} 5. g3 {[%clk 0:03:00.3]} 5... e5
{[%clk 0:02:55.8]} 6. Bg2 {[%clk 0:02:59.5]} 6... Bg7 {[%clk 0:02:53.4]} 7. O-O
{[%clk 0:02:59.7]} 7... f5 {[%clk 0:02:53.4]} 8. d4 {[%clk 0:02:57.9]} 8... e4
{[%clk 0:02:53.2]} 9. Nh4 {[%clk 0:02:55.2]} 9... Qf6 {[%clk 0:02:52.7]} 10. e3
{[%clk 0:02:54.2]} 10... d5 {[%clk 0:02:46.5]} 11. c4 {[%clk 0:02:52.7]} 11...
c6 {[%clk 0:02:40.2]} 12. Nc3 {[%clk 0:02:44.5]} 12... Nd7 {[%clk 0:02:33.9]}
13. cxd5 {[%clk 0:02:41.7]} 13... cxd5 {[%clk 0:02:33.4]} 14. Qh5 {[%clk
0:02:40.1]} 14... Rc8 {[%clk 0:02:27.5]} 15. Ne2 {[%clk 0:02:36.6]} 15... Rc2
{[%clk 0:02:25.9]} 16. Nf4 {[%clk 0:02:36.8]} 16... Ba6 {[%clk 0:02:12.2]} 17.
Rfc1 {[%clk 0:02:35.9]} 17... Qc6 {[%clk 0:02:10.6]} 18. Rxc2 {[%clk 0:02:29.2]}
18... Qxc2 {[%clk 0:02:11.5]} 19. Nxf5 {[%clk 0:02:23.9]} 19... Bf8 {[%clk
0:02:06.3]} 20. Nxd5 {[%clk 0:02:20]} 20... Be2 {[%clk 0:02:05.5]} 21. Qh4
{[%clk 0:02:01.7]} 21... Bf3 {[%clk 0:02:06.4]} 22. Nf6+ {[%clk 0:01:54.7]}
22... Nxf6 {[%clk 0:02:06]} 23. Qxf6 {[%clk 0:01:55.6]} 23... Rg8 {[%clk
0:02:06.2]} 24. Nd6+ {[%clk 0:01:51.1]} 24... Bxd6 {[%clk 0:02:05.3]} 25. Qxd6
{[%clk 0:01:52]} 25... Rg6 {[%clk 0:02:05.4]} 26. Qb8+ {[%clk 0:01:50]} 26...
Ke7 {[%clk 0:02:04.2]} 27. Qxa7+ {[%clk 0:01:49.2]} 27... Kf8 {[%clk 0:02:04.8]}
28. Qa3+ {[%clk 0:01:44.2]} 28... Kg7 {[%clk 0:02:04]} 29. Rc1 {[%clk
0:01:44.5]} 29... Qe2 {[%clk 0:02:02.9]} 30. Qe7 {[%clk 0:00:41.9]} 30... Rf6
{[%clk 0:01:57]} 31. Rf1 {[%clk 0:00:35.1]} 31... h5 {[%clk 0:01:53.7]} 32. Qe5
{[%clk 0:00:33.4]} 32... Kg6 {[%clk 0:01:52.5]} 33. h4 {[%clk 0:00:32.6]} 33...
Rf5 {[%clk 0:01:48.5]} 34. Qe8 {[%clk 0:00:32.1]} 34... Qxa2 {[%clk 0:01:45.2]}
35. Qg8+ {[%clk 0:00:30.4]} 35... Kf6 {[%clk 0:01:45]} 36. Bxf3 {[%clk
0:00:28.5]} 36... exf3 {[%clk 0:01:42.7]} 37. Rc1 {[%clk 0:00:27.6]} 37... Qd2
{[%clk 0:01:20.4]} 38. Rc6+ {[%clk 0:00:24.9]} 38... Ke7 {[%clk 0:01:20.8]} 39.
Rc7+ {[%clk 0:00:20]} 39... Ke6 {[%clk 0:01:09.4]} 40. Qe8+ {[%clk 0:00:18.3]}
40... Kd5 {[%clk 0:01:04.4]} 41. Qc6# {[%clk 0:00:16.4]} 1-0

[Event "Late-Titled-Tuesday-Blitz-March-05-2024"]
[Site "Chess.com"]
[Date "2024.03.05"]
[Round "6"]
[White "XeresLt"]
[Black "karinachess1"]
[Result "0-1"]
[WhiteElo "2465"]
[BlackElo "2598"]
[TimeControl "180+1"]
[EndTime "15:04:22 PST"]
[Termination "karinachess1 won by resignation"]

1. e4 {[%clk 0:02:56.8]} 1... e5 {[%clk 0:02:59.4]} 2. Nf3 {[%clk 0:02:56.5]}
2... Nc6 {[%clk 0:02:59.8]} 3. Bc4 {[%clk 0:02:56.4]} 3... Nf6 {[%clk
0:02:59.8]} 4. d3 {[%clk 0:02:56.7]} 4... h6 {[%clk 0:03:00.1]} 5. c3 {[%clk
0:02:51.7]} 5... d6 {[%clk 0:03:00.3]} 6. a4 {[%clk 0:02:46.9]} 6... g5 {[%clk
0:02:59.4]} 7. b4 {[%clk 0:02:42.9]} 7... Bg7 {[%clk 0:02:57]} 8. h4 {[%clk
0:02:37.5]} 8... g4 {[%clk 0:02:52.9]} 9. Ng1 {[%clk 0:02:34.6]} 9... Be6 {[%clk
0:02:51.9]} 10. Ba2 {[%clk 0:02:33.8]} 10... d5 {[%clk 0:02:45.5]} 11. b5 {[%clk
0:02:30.4]} 11... Ne7 {[%clk 0:02:40.9]} 12. Nd2 {[%clk 0:02:29]} 12... Qd7
{[%clk 0:02:37.8]} 13. Ne2 {[%clk 0:02:13]} 13... Nh5 {[%clk 0:02:17.4]} 14.
exd5 {[%clk 0:02:02.4]} 14... Nxd5 {[%clk 0:02:18.3]} 15. Ne4 {[%clk 0:02:00.8]}
15... b6 {[%clk 0:02:15.5]} 16. c4 {[%clk 0:01:55.4]} 16... Ndf4 {[%clk
0:02:13.2]} 17. Nxf4 {[%clk 0:01:54.6]} 17... Nxf4 {[%clk 0:02:00.3]} 18. Bxf4
{[%clk 0:01:48.6]} 18... exf4 {[%clk 0:02:01.2]} 19. O-O {[%clk 0:01:34]} 19...
Bxa1 {[%clk 0:01:39.4]} 20. Qxa1 {[%clk 0:01:33.7]} 20... O-O-O {[%clk
0:01:40.1]} 21. a5 {[%clk 0:01:29.1]} 21... Qd4 {[%clk 0:01:39.6]} 22. Qe1
{[%clk 0:01:26]} 22... g3 {[%clk 0:01:29.7]} 23. axb6 {[%clk 0:01:23.2]} 23...
cxb6 {[%clk 0:01:19.9]} 24. Bb1 {[%clk 0:01:17.6]} 24... Rhg8 {[%clk 0:01:16.2]}
25. Qc1 {[%clk 0:01:10.9]} 25... f3 {[%clk 0:01:15.1]} 26. gxf3 {[%clk
0:00:59.7]} 26... gxf2+ {[%clk 0:01:11.8]} 27. Kh1 {[%clk 0:00:58.5]} 27... Bh3
{[%clk 0:01:06.2]} 28. Rxf2 {[%clk 0:00:56.5]} 28... f5 {[%clk 0:00:59]} 29. Rh2
{[%clk 0:00:41.7]} 29... fxe4 {[%clk 0:00:56.2]} 30. Rxh3 {[%clk 0:00:42.1]}
30... exd3 {[%clk 0:00:55.3]} 31. Qd1 {[%clk 0:00:24.5]} 31... d2 {[%clk
0:00:54.5]} 32. Bf5+ {[%clk 0:00:18.2]} 32... Kb8 {[%clk 0:00:54.4]} 33. Rh2
{[%clk 0:00:18.7]} 33... Rg1+ {[%clk 0:00:53]} 34. Qxg1 {[%clk 0:00:18.2]} 34...
Qxg1+ {[%clk 0:00:53.9]} 35. Kxg1 {[%clk 0:00:18.2]} 35... d1=Q+ {[%clk
0:00:54.8]} 36. Kg2 {[%clk 0:00:19.1]} 36... Rd2+ {[%clk 0:00:53.1]} 0-1

[Event "Late-Titled-Tuesday-Blitz-March-05-2024"]
[Site "Chess.com"]
[Date "2024.03.05"]
[Round "6"]
[White "Harsha_Bharathakoti"]
[Black "DeTimmerman"]
[Result "1-0"]
[WhiteElo "2959"]
[BlackElo "2748"]
[TimeControl "180+1"]
[EndTime "15:04:25 PST"]
[Termination "Harsha_Bharathakoti won by resignation"]

1. d4 {[%clk 0:03:00.9]} 1... Nf6 {[%clk 0:02:59.6]} 2. Bg5 {[%clk 0:03:01.4]}
2... Ne4 {[%clk 0:02:59.7]} 3. Bf4 {[%clk 0:03:01.4]} 3... c5 {[%clk 0:03:00.2]}
4. f3 {[%clk 0:03:01.6]} 4... Qa5+ {[%clk 0:02:59.9]} 5. c3 {[%clk 0:03:01.3]}
5... Nf6 {[%clk 0:03:00.5]} 6. d5 {[%clk 0:03:02]} 6... e6 {[%clk 0:03:00.7]} 7.
e4 {[%clk 0:03:00.5]} 7... exd5 {[%clk 0:03:01.2]} 8. exd5 {[%clk 0:03:01.4]}
8... d6 {[%clk 0:03:01.4]} 9. Na3 {[%clk 0:02:55.8]} 9... Be7 {[%clk 0:03:01.5]}
10. Nc4 {[%clk 0:02:35.7]} 10... Qc7 {[%clk 0:03:01.6]} 11. a4 {[%clk
0:02:35.6]} 11... Nbd7 {[%clk 0:03:02]} 12. Qe2 {[%clk 0:01:52.5]} 12... Kd8
{[%clk 0:03:00.8]} 13. O-O-O {[%clk 0:01:52.3]} 13... Nf8 {[%clk 0:02:59.4]} 14.
Qc2 {[%clk 0:01:47.3]} 14... Ng6 {[%clk 0:02:54.1]} 15. Bg3 {[%clk 0:01:47.5]}
15... Bd7 {[%clk 0:02:51.2]} 16. h4 {[%clk 0:01:41.4]} 16... Re8 {[%clk
0:02:31]} 17. h5 {[%clk 0:01:35.9]} 17... Nf8 {[%clk 0:02:31.3]} 18. h6 {[%clk
0:01:36.6]} 18... g6 {[%clk 0:02:30.5]} 19. Nh3 {[%clk 0:01:37.2]} 19... Bf5
{[%clk 0:02:30.2]} 20. Bd3 {[%clk 0:01:36.9]} 20... Bxd3 {[%clk 0:02:30.1]} 21.
Qxd3 {[%clk 0:01:37.5]} 21... Kc8 {[%clk 0:02:15]} 22. Ng5 {[%clk 0:01:37]}
22... Nh5 {[%clk 0:02:15.1]} 23. Rxh5 {[%clk 0:01:32.8]} 23... gxh5 {[%clk
0:02:16]} 24. Nxf7 {[%clk 0:01:33.4]} 24... Rd8 {[%clk 0:01:40.7]} 25. Nxd8
{[%clk 0:01:27.9]} 25... Qxd8 {[%clk 0:01:41.6]} 26. Re1 {[%clk 0:01:02.2]}
26... Ng6 {[%clk 0:01:36.5]} 27. Qf5+ {[%clk 0:00:51.4]} 27... Qd7 {[%clk
0:00:47.4]} 28. Nxd6+ {[%clk 0:00:43.9]} 28... Bxd6 {[%clk 0:00:33.5]} 29. Re8+
{[%clk 0:00:43.4]} 29... Kc7 {[%clk 0:00:33.8]} 30. Bxd6+ {[%clk 0:00:44.1]} 1-0

[Event "Late-Titled-Tuesday-Blitz-March-05-2024"]
[Site "Chess.com"]
[Date "2024.03.05"]
[Round "6"]
[White "kids2010"]
[Black "maximnovik"]
[Result "1-0"]
[WhiteElo "2808"]
[BlackElo "2603"]
[TimeControl "180+1"]
[EndTime "15:04:25 PST"]
[Termination "kids2010 won by resignation"]

1. e4 {[%clk 0:03:00.9]} 1... c6 {[%clk 0:02:59.7]} 2. d4 {[%clk 0:03:00.4]}
2... d5 {[%clk 0:03:00.6]} 3. exd5 {[%clk 0:03:01]} 3... cxd5 {[%clk 0:03:00.9]}
4. Bd3 {[%clk 0:03:01.9]} 4... Nf6 {[%clk 0:03:01]} 5. c3 {[%clk 0:03:02.8]}
5... Nc6 {[%clk 0:03:01.2]} 6. Bf4 {[%clk 0:03:00.6]} 6... Bg4 {[%clk
0:03:00.9]} 7. Qb3 {[%clk 0:03:00.4]} 7... Qd7 {[%clk 0:03:01.1]} 8. Nd2 {[%clk
0:02:59.7]} 8... e6 {[%clk 0:03:01.7]} 9. Ngf3 {[%clk 0:02:59.9]} 9... Bd6
{[%clk 0:03:02.2]} 10. Bxd6 {[%clk 0:03:00.3]} 10... Qxd6 {[%clk 0:03:02.7]} 11.
O-O {[%clk 0:03:00.9]} 11... O-O {[%clk 0:03:02.9]} 12. Rae1 {[%clk 0:03:01.4]}
12... Qc7 {[%clk 0:03:02.6]} 13. Re3 {[%clk 0:02:51.9]} 13... Bxf3 {[%clk
0:03:02]} 14. Nxf3 {[%clk 0:02:50.5]} 14... Rae8 {[%clk 0:03:01.2]} 15. Rfe1
{[%clk 0:02:48.6]} 15... g6 {[%clk 0:03:00]} 16. Ne5 {[%clk 0:02:44.6]} 16...
Nxe5 {[%clk 0:02:57.6]} 17. dxe5 {[%clk 0:02:45.5]} 17... Nd7 {[%clk 0:02:57.3]}
18. Qb4 {[%clk 0:02:44.7]} 18... Nc5 {[%clk 0:02:37.1]} 19. Qh4 {[%clk
0:02:38.9]} 19... Nxd3 {[%clk 0:02:33.8]} 20. Rxd3 {[%clk 0:02:39.8]} 20... Qe7
{[%clk 0:02:29]} 21. Qh6 {[%clk 0:02:39]} 21... f5 {[%clk 0:02:23.4]} 22. exf6
{[%clk 0:02:36]} 22... Qxf6 {[%clk 0:02:10.2]} 23. Rf3 {[%clk 0:02:35.3]} 23...
Qg7 {[%clk 0:02:10]} 24. Rxf8+ {[%clk 0:02:32.4]} 24... Qxf8 {[%clk 0:02:03.2]}
25. Qe3 {[%clk 0:02:32.2]} 25... a6 {[%clk 0:02:02.2]} 26. Qb6 {[%clk
0:02:28.9]} 26... Qf7 {[%clk 0:01:59.2]} 27. Qd6 {[%clk 0:02:24.8]} 27... Kg7
{[%clk 0:01:53.7]} 28. f4 {[%clk 0:02:24.7]} 28... Qe7 {[%clk 0:01:50.4]} 29.
Qe5+ {[%clk 0:02:16.9]} 29... Qf6 {[%clk 0:01:50.5]} 30. Qe3 {[%clk 0:02:16.5]}
30... Re7 {[%clk 0:01:46.6]} 31. g3 {[%clk 0:02:16.3]} 31... Kf7 {[%clk
0:01:46.2]} 32. Kg2 {[%clk 0:02:16.3]} 32... h5 {[%clk 0:01:43.2]} 33. Re2
{[%clk 0:02:15.2]} 33... Qf5 {[%clk 0:01:43.3]} 34. h3 {[%clk 0:02:15]} 34...
Qb1 {[%clk 0:01:43]} 35. a3 {[%clk 0:02:14.2]} 35... Qf5 {[%clk 0:01:41.6]} 36.
Qf3 {[%clk 0:02:13.7]} 36... Kg7 {[%clk 0:01:38.2]} 37. g4 {[%clk 0:02:13.3]}
37... hxg4 {[%clk 0:01:37.2]} 38. hxg4 {[%clk 0:02:14.2]} 38... Qf6 {[%clk
0:01:37.8]} 39. Re5 {[%clk 0:02:07.1]} 39... Rf7 {[%clk 0:01:35.1]} 40. Kg3
{[%clk 0:01:53.1]} 40... Qxe5 {[%clk 0:01:23.7]} 41. fxe5 {[%clk 0:01:54]} 41...
Rxf3+ {[%clk 0:01:23.9]} 42. Kxf3 {[%clk 0:01:54.9]} 42... g5 {[%clk 0:01:22.6]}
43. Ke3 {[%clk 0:01:50.6]} 43... Kf7 {[%clk 0:01:22]} 44. Kd4 {[%clk 0:01:51.5]}
44... b6 {[%clk 0:01:22.3]} 45. a4 {[%clk 0:01:41.9]} 45... Ke7 {[%clk
0:01:07.9]} 46. a5 {[%clk 0:01:24.2]} 46... bxa5 {[%clk 0:00:52.4]} 47. Kc5
{[%clk 0:01:24]} 47... Kd7 {[%clk 0:00:51.8]} 48. Kb6 {[%clk 0:01:23.8]} 48...
a4 {[%clk 0:00:50.5]} 49. Kb7 {[%clk 0:01:23.5]} 49... a5 {[%clk 0:00:43.9]} 50.
Kb6 {[%clk 0:01:23.2]} 50... a3 {[%clk 0:00:39.5]} 51. bxa3 {[%clk 0:01:23.8]}
51... a4 {[%clk 0:00:39.9]} 52. Kb7 {[%clk 0:01:24.1]} 52... Kd8 {[%clk
0:00:38.3]} 53. Kc6 {[%clk 0:01:23.8]} 53... Ke7 {[%clk 0:00:38.3]} 54. Kc7
{[%clk 0:01:22.9]} 54... Ke8 {[%clk 0:00:38.2]} 55. Kd6 {[%clk 0:01:22.9]} 55...
Kf7 {[%clk 0:00:38.2]} 56. Kd7 {[%clk 0:01:23]} 1-0

[Event "Late-Titled-Tuesday-Blitz-March-05-2024"]
[Site "Chess.com"]
[Date "2024.03.05"]
[Round "6"]
[White "TigrVShlyape"]
[Black "djano"]
[Result "1-0"]
[WhiteElo "2858"]
[BlackElo "2567"]
[TimeControl "180+1"]
[EndTime "15:04:29 PST"]
[Termination "TigrVShlyape won by resignation"]

1. d4 {[%clk 0:03:00.9]} 1... d5 {[%clk 0:02:56.5]} 2. Bf4 {[%clk 0:02:59.1]}
2... c5 {[%clk 0:02:55.9]} 3. e3 {[%clk 0:02:59.5]} 3... Nc6 {[%clk 0:02:54]} 4.
c3 {[%clk 0:02:59.9]} 4... cxd4 {[%clk 0:02:52.6]} 5. exd4 {[%clk 0:02:59.6]}
5... Nf6 {[%clk 0:02:52.5]} 6. Nd2 {[%clk 0:02:59.1]} 6... Bf5 {[%clk
0:02:37.1]} 7. Ngf3 {[%clk 0:02:58.1]} 7... e6 {[%clk 0:02:37.1]} 8. Bb5 {[%clk
0:02:57.6]} 8... Bd6 {[%clk 0:02:31.3]} 9. Bg3 {[%clk 0:02:52.5]} 9... O-O
{[%clk 0:02:30]} 10. O-O {[%clk 0:02:52.6]} 10... Ne7 {[%clk 0:02:23.3]} 11. a4
{[%clk 0:02:49.6]} 11... Ne4 {[%clk 0:02:17.3]} 12. Nxe4 {[%clk 0:02:47.8]}
12... Bxe4 {[%clk 0:02:18.2]} 13. Nd2 {[%clk 0:02:45.6]} 13... Bg6 {[%clk
0:02:13.4]} 14. Bxd6 {[%clk 0:02:44.7]} 14... Qxd6 {[%clk 0:02:13.3]} 15. Re1
{[%clk 0:02:44.7]} 15... Qb6 {[%clk 0:01:52.1]} 16. Qb3 {[%clk 0:02:43.4]} 16...
Nc8 {[%clk 0:01:50.8]} 17. a5 {[%clk 0:02:42.7]} 17... Qc7 {[%clk 0:01:51]} 18.
Qb4 {[%clk 0:02:41.2]} 18... Nd6 {[%clk 0:01:50.6]} 19. Bf1 {[%clk 0:02:40.2]}
19... Ne4 {[%clk 0:01:43.1]} 20. Nxe4 {[%clk 0:02:38.8]} 20... Bxe4 {[%clk
0:01:44]} 21. c4 {[%clk 0:02:38.8]} 21... h5 {[%clk 0:01:37.7]} 22. c5 {[%clk
0:02:37.9]} 22... h4 {[%clk 0:01:33.7]} 23. Qc3 {[%clk 0:02:30.1]} 23... Bf5
{[%clk 0:01:12.1]} 24. b4 {[%clk 0:02:29]} 24... a6 {[%clk 0:01:09.3]} 25. Ra2
{[%clk 0:02:04.1]} 25... Rfe8 {[%clk 0:01:04.3]} 26. Rb2 {[%clk 0:02:03.4]}
26... Qd8 {[%clk 0:00:55.4]} 27. b5 {[%clk 0:02:02.7]} 27... axb5 {[%clk
0:00:54.3]} 28. Rxb5 {[%clk 0:02:02.4]} 28... Ra7 {[%clk 0:00:51.6]} 29. Rb6
{[%clk 0:01:57.4]} 29... Qg5 {[%clk 0:00:43]} 30. Ra1 {[%clk 0:01:36.4]} 30...
Rea8 {[%clk 0:00:41.4]} 31. h3 {[%clk 0:01:18.5]} 31... Qf6 {[%clk 0:00:35.4]}
32. Bb5 {[%clk 0:01:13.3]} 32... Qg6 {[%clk 0:00:32.4]} 33. a6 {[%clk
0:01:07.2]} 33... bxa6 {[%clk 0:00:28.7]} 34. Rbxa6 {[%clk 0:01:07.3]} 34...
Rxa6 {[%clk 0:00:26.9]} 35. Rxa6 {[%clk 0:01:07.3]} 35... Rb8 {[%clk 0:00:23.9]}
36. Rb6 {[%clk 0:01:05.9]} 36... Ra8 {[%clk 0:00:19]} 37. c6 {[%clk 0:01:06.3]}
37... Be4 {[%clk 0:00:10.5]} 38. Bf1 {[%clk 0:01:06]} 38... Rc8 {[%clk
0:00:07.5]} 39. c7 {[%clk 0:01:05.8]} 39... e5 {[%clk 0:00:05.2]} 40. Rxg6
{[%clk 0:01:03.2]} 1-0

[Event "Late-Titled-Tuesday-Blitz-March-05-2024"]
[Site "Chess.com"]
[Date "2024.03.05"]
[Round "6"]
[White "Viktor_Poddubnyi"]
[Black "NovakRatko"]
[Result "0-1"]
[WhiteElo "2265"]
[BlackElo "2389"]
[TimeControl "180+1"]
[EndTime "15:04:31 PST"]
[Termination "NovakRatko won on time"]

1. e4 {[%clk 0:02:59.6]} 1... d5 {[%clk 0:02:59.8]} 2. exd5 {[%clk 0:02:59.4]}
2... c6 {[%clk 0:03:00.1]} 3. dxc6 {[%clk 0:02:58.6]} 3... Nxc6 {[%clk 0:03:01]}
4. Nf3 {[%clk 0:02:57.3]} 4... e5 {[%clk 0:03:00.9]} 5. d3 {[%clk 0:02:56.2]}
5... Bc5 {[%clk 0:02:59.3]} 6. Be2 {[%clk 0:02:55.7]} 6... f5 {[%clk 0:02:59.6]}
7. O-O {[%clk 0:02:46.9]} 7... Nf6 {[%clk 0:02:59.1]} 8. a3 {[%clk 0:02:46.7]}
8... a5 {[%clk 0:02:58.1]} 9. Nc3 {[%clk 0:02:39.2]} 9... O-O {[%clk 0:02:57.4]}
10. Be3 {[%clk 0:02:24.4]} 10... Bxe3 {[%clk 0:02:53.8]} 11. fxe3 {[%clk
0:02:25.3]} 11... Qb6 {[%clk 0:02:54.6]} 12. Qd2 {[%clk 0:02:25.3]} 12... f4
{[%clk 0:02:47.1]} 13. Nd1 {[%clk 0:01:50]} 13... Ng4 {[%clk 0:02:46.4]} 14. d4
{[%clk 0:01:37]} 14... fxe3 {[%clk 0:02:39.8]} 15. Nxe3 {[%clk 0:01:26]} 15...
exd4 {[%clk 0:02:08]} 16. Bc4+ {[%clk 0:01:23.4]} 16... Kh8 {[%clk 0:02:07.7]}
17. Nxg4 {[%clk 0:01:22.7]} 17... Bxg4 {[%clk 0:02:06.3]} 18. Ng5 {[%clk
0:01:11.7]} 18... Ne5 {[%clk 0:02:05]} 19. Bd3 {[%clk 0:01:00.2]} 19... h6
{[%clk 0:01:51.6]} 20. Ne4 {[%clk 0:00:47.1]} 20... Rxf1+ {[%clk 0:01:29.1]} 21.
Rxf1 {[%clk 0:00:46]} 21... Qxb2 {[%clk 0:01:29.2]} 22. Qf4 {[%clk 0:00:40.6]}
22... Nxd3 {[%clk 0:01:27.2]} 23. cxd3 {[%clk 0:00:33.9]} 23... Be2 {[%clk
0:01:21.9]} 24. Re1 {[%clk 0:00:04.5]} 24... Bxd3 {[%clk 0:01:21.3]} 25. Nc5
{[%clk 0:00:04.3]} 25... Bc4 {[%clk 0:00:59.4]} 26. Nd7 {[%clk 0:00:01.6]} 26...
Qc3 {[%clk 0:00:48.2]} 27. Ne5 {[%clk 0:00:01.8]} 27... Qxe1+ {[%clk 0:00:45.5]}
0-1

[Event "Late-Titled-Tuesday-Blitz-March-05-2024"]
[Site "Chess.com"]
[Date "2024.03.05"]
[Round "6"]
[White "AlexTruskavetsky"]
[Black "emeli_chess"]
[Result "1-0"]
[WhiteElo "2691"]
[BlackElo "2419"]
[TimeControl "180+1"]
[EndTime "15:04:34 PST"]
[Termination "AlexTruskavetsky won by checkmate"]

1. d4 {[%clk 0:03:00.9]} 1... Nf6 {[%clk 0:02:59]} 2. c4 {[%clk 0:03:00.4]} 2...
e6 {[%clk 0:02:59.4]} 3. Nc3 {[%clk 0:03:01]} 3... Bb4 {[%clk 0:02:59.5]} 4. e3
{[%clk 0:03:01.3]} 4... b6 {[%clk 0:02:59.4]} 5. Bd3 {[%clk 0:03:01.7]} 5... Bb7
{[%clk 0:02:56.7]} 6. f3 {[%clk 0:03:01.8]} 6... c5 {[%clk 0:02:42.3]} 7. a3
{[%clk 0:03:01.8]} 7... Bxc3+ {[%clk 0:02:37.4]} 8. bxc3 {[%clk 0:03:02.7]} 8...
d5 {[%clk 0:02:34.7]} 9. cxd5 {[%clk 0:03:02.3]} 9... exd5 {[%clk 0:02:26.3]}
10. Ne2 {[%clk 0:03:02.3]} 10... O-O {[%clk 0:02:25.4]} 11. O-O {[%clk
0:03:02.6]} 11... Re8 {[%clk 0:02:15.7]} 12. g4 {[%clk 0:03:02.6]} 12... Nc6
{[%clk 0:02:04.7]} 13. Ng3 {[%clk 0:03:00.2]} 13... Na5 {[%clk 0:01:59.7]} 14.
g5 {[%clk 0:02:38.5]} 14... Nd7 {[%clk 0:01:57.7]} 15. f4 {[%clk 0:02:24.2]}
15... c4 {[%clk 0:01:37.6]} 16. Bc2 {[%clk 0:02:24.1]} 16... Nb3 {[%clk
0:01:34.7]} 17. Rb1 {[%clk 0:02:18.4]} 17... Nxc1 {[%clk 0:01:34.1]} 18. Qxc1
{[%clk 0:02:19.3]} 18... g6 {[%clk 0:01:10.5]} 19. h4 {[%clk 0:02:18.7]} 19...
Qe7 {[%clk 0:01:03.5]} 20. Rf3 {[%clk 0:02:18.2]} 20... Qe6 {[%clk 0:01:02.1]}
21. f5 {[%clk 0:02:17.8]} 21... Qd6 {[%clk 0:00:57]} 22. h5 {[%clk 0:02:15.9]}
22... Nf8 {[%clk 0:00:36.8]} 23. Kg2 {[%clk 0:02:08.2]} 23... Re7 {[%clk
0:00:32.6]} 24. hxg6 {[%clk 0:02:02.7]} 24... fxg6 {[%clk 0:00:31]} 25. f6
{[%clk 0:01:58.8]} 25... Rf7 {[%clk 0:00:30]} 26. Qh1 {[%clk 0:01:57.5]} 26...
Re8 {[%clk 0:00:29.7]} 27. Qh6 {[%clk 0:01:57]} 27... Bc8 {[%clk 0:00:27.1]} 28.
Rh1 {[%clk 0:01:54.4]} 28... Bg4 {[%clk 0:00:26.5]} 29. Rf4 {[%clk 0:01:48.8]}
29... Bc8 {[%clk 0:00:16.1]} 30. Nf1 {[%clk 0:01:19]} 30... Qxa3 {[%clk
0:00:14.7]} 31. Rfh4 {[%clk 0:01:19.3]} 31... Qa2 {[%clk 0:00:13.6]} 32. R4h2
{[%clk 0:01:04.4]} 32... Qxc2+ {[%clk 0:00:13.7]} 33. Kg3 {[%clk 0:01:05.2]}
33... Qxc3 {[%clk 0:00:13.7]} 34. Rf2 {[%clk 0:01:02.4]} 34... Rxe3+ {[%clk
0:00:12.9]} 35. Nxe3 {[%clk 0:01:02.9]} 35... Qxe3+ {[%clk 0:00:13.2]} 36. Rf3
{[%clk 0:01:03.6]} 36... Qxd4 {[%clk 0:00:13.3]} 37. Re1 {[%clk 0:01:04]} 37...
Bf5 {[%clk 0:00:11.5]} 38. Re8 {[%clk 0:00:59.4]} 38... Be4 {[%clk 0:00:11.1]}
39. Rxf8+ {[%clk 0:00:59.1]} 39... Rxf8 {[%clk 0:00:09.4]} 40. Qg7# {[%clk
0:01:00]} 1-0

[Event "Late-Titled-Tuesday-Blitz-March-05-2024"]
[Site "Chess.com"]
[Date "2024.03.05"]
[Round "6"]
[White "janhelmer03"]
[Black "Malev212"]
[Result "0-1"]
[WhiteElo "2398"]
[BlackElo "2625"]
[TimeControl "180+1"]
[EndTime "15:04:34 PST"]
[Termination "Malev212 won by resignation"]

1. d4 {[%clk 0:03:00.9]} 1... d5 {[%clk 0:02:53.1]} 2. c4 {[%clk 0:02:45.8]}
2... e6 {[%clk 0:02:52.7]} 3. cxd5 {[%clk 0:02:32]} 3... exd5 {[%clk 0:02:50.8]}
4. Nf3 {[%clk 0:02:32.9]} 4... c6 {[%clk 0:02:49.3]} 5. Nc3 {[%clk 0:02:32.2]}
5... Bf5 {[%clk 0:02:48]} 6. Bf4 {[%clk 0:02:11.3]} 6... Nf6 {[%clk 0:02:44.9]}
7. e3 {[%clk 0:01:56.7]} 7... Nbd7 {[%clk 0:02:44.5]} 8. Bd3 {[%clk 0:01:38.9]}
8... Bxd3 {[%clk 0:02:43.4]} 9. Qxd3 {[%clk 0:01:39.8]} 9... Be7 {[%clk
0:02:43]} 10. O-O {[%clk 0:01:39.5]} 10... O-O {[%clk 0:02:42.8]} 11. h3 {[%clk
0:01:39.9]} 11... Nb6 {[%clk 0:02:41.6]} 12. Ne5 {[%clk 0:01:38]} 12... Re8
{[%clk 0:02:34.1]} 13. Rab1 {[%clk 0:01:25.1]} 13... a5 {[%clk 0:02:25.5]} 14.
Rfc1 {[%clk 0:01:12]} 14... Nfd7 {[%clk 0:02:24.9]} 15. Nxd7 {[%clk 0:01:11.1]}
15... Qxd7 {[%clk 0:02:23.7]} 16. b3 {[%clk 0:01:06.5]} 16... Nc8 {[%clk
0:02:08]} 17. Na4 {[%clk 0:00:51.3]} 17... Bd6 {[%clk 0:02:06.2]} 18. Bxd6
{[%clk 0:00:49.9]} 18... Qxd6 {[%clk 0:02:06]} 19. Nc5 {[%clk 0:00:48.6]} 19...
Qe7 {[%clk 0:02:04.4]} 20. Na4 {[%clk 0:00:40.1]} 20... g6 {[%clk 0:02:01.2]}
21. Rc5 {[%clk 0:00:38.2]} 21... Nd6 {[%clk 0:01:55.4]} 22. Rbc1 {[%clk
0:00:35.8]} 22... Ne4 {[%clk 0:01:51.5]} 23. R5c2 {[%clk 0:00:31.3]} 23... Kg7
{[%clk 0:01:49.4]} 24. Nc5 {[%clk 0:00:31.3]} 24... Nd6 {[%clk 0:01:47.8]} 25.
Na4 {[%clk 0:00:27.3]} 25... h5 {[%clk 0:01:46.7]} 26. Rc5 {[%clk 0:00:20.5]}
26... Ne4 {[%clk 0:01:45.6]} 27. R5c2 {[%clk 0:00:20.3]} 27... h4 {[%clk
0:01:45.8]} 28. Nc5 {[%clk 0:00:20.7]} 28... Nd6 {[%clk 0:01:45.4]} 29. a4
{[%clk 0:00:13.3]} 29... f5 {[%clk 0:01:43.4]} 30. Rb2 {[%clk 0:00:10.6]} 30...
b6 {[%clk 0:01:37.8]} 31. Na6 {[%clk 0:00:10.9]} 31... Qb7 {[%clk 0:01:36.8]}
32. Rbc2 {[%clk 0:00:09.7]} 32... Qxa6 {[%clk 0:01:35.5]} 33. Qxa6 {[%clk
0:00:09.8]} 33... Rxa6 {[%clk 0:01:35.3]} 34. Rxc6 {[%clk 0:00:10.7]} 34... Ne4
{[%clk 0:01:30.7]} 35. Rc7+ {[%clk 0:00:07.7]} 35... Kf6 {[%clk 0:01:30.1]} 36.
Rb7 {[%clk 0:00:04.2]} 36... Re7 {[%clk 0:01:27.9]} 37. Rb8 {[%clk 0:00:04.1]}
37... f4 {[%clk 0:01:21.1]} 38. Rc6+ {[%clk 0:00:04.3]} 38... Kg7 {[%clk
0:01:19.4]} 39. exf4 {[%clk 0:00:03.3]} 39... Nd2 {[%clk 0:01:11.4]} 40. Rc3
{[%clk 0:00:03]} 40... Re1+ {[%clk 0:01:10]} 41. Kh2 {[%clk 0:00:03.5]} 41...
Nf1+ {[%clk 0:01:10.1]} 42. Kg1 {[%clk 0:00:02.7]} 42... Ng3+ {[%clk 0:01:10.7]}
0-1